Cogmind - Beta 10.2 *** ADVENTURER MODE // 2021.04.05 @ 22:03:43 Player: RomanTheEvil Result: Self-destructed Performance ------------- Evolutions (1) 500 Regions Visited (4) 800 Robots Destroyed (28) 140 Value Destroyed (736) 736 Prototype IDs (0) 0 Alien Tech Used (0) 0 Bonus (0) 0 TOTAL SCORE: 2176 Bonus ------- None Cogmind --------- Core Integrity 11/400 Matter 300/300 Energy 100/100 System Corruption 8% Temperature Cool (0) Movement Walking (120) Location -9/Exiles Parts ------- > --- POWER (1) -------- (None) > --- PROPULSION (4) --- Aluminum Leg > --- UTILITY (2) ------ Small Storage Unit > --- WEAPON (2) ------- Makeshift Spear > --- INVENTORY (6) ---- Advanced Signal Interpreter Grenade Launcher Rocket Launcher Datajack Peak State ------------ > --- POWER ------------ Light Nuclear Core > --- PROPULSION ------- Aluminum Leg Aluminum Leg Aluminum Leg Aluminum Leg > --- UTILITY ---------- Small Storage Unit Signal Interpreter > --- WEAPON ----------- Heavy Assault Rifle Plasma Cutter > --- INVENTORY -------- Ion Engine Aluminum Leg Assault Rifle Assault Rifle Grenade Launcher Datajack [Rating: 13] Favorites ----------- Power Light Nuclear Core Engine Light Ion Engine Power Core Light Nuclear Core Propulsion Aluminum Leg Leg Aluminum Leg Wheel Wheel Utility Small Storage Unit Device ECM Suite Storage Small Storage Unit Processor Signal Interpreter Weapon Assault Rifle Energy Gun EM Pulse Gun Ballistic Gun Assault Rifle Special Weapon Plasma Cutter Impact Weapon Heavy Hammer Piercing Weapon Makeshift Spear Special Melee Weapon Datajack Build | -11 -10 -9 -9 -9 ------- Run | Scr Mat Mat Min Exi Slots Evolved 2 | . . 2 . . Power . | . . . . . Propulsion 2 | . . 2 . . Utility . | . . . . . Weapon . | . . . . . Parts Attached 39 | 6 13 10 10 . Power 6 | 1 2 1 2 . Engine 4 | 1 . 1 2 . Core 2 | . 2 . . . Reactor . | . . . . . Propulsion 14 | 2 5 3 4 . Treads . | . . . . . Leg 12 | 2 5 3 2 . Wheel 2 | . . . 2 . Hover . | . . . . . Flight . | . . . . . Utility 5 | 1 1 1 2 . Device 1 | . 1 . . . Storage 2 | 1 . . 1 . Processor 2 | . . 1 1 . Hackware . | . . . . . Protection . | . . . . . Artifact . | . . . . . Weapon 14 | 2 5 5 2 . Energy Gun 2 | 1 1 . . . Energy Cannon . | . . . . . Ballistic Gun 7 | 1 3 3 . . Ballistic Cannon . | . . . . . Launcher . | . . . . . Special Weapon 1 | . . 1 . . Impact Weapon 2 | . . 1 1 . Slashing Weapon . | . . . . . Piercing Weapon 1 | . . . 1 . Special Melee Weapon 1 | . 1 . . . Unidentified Prototypes . | . . . . . Parts Lost 16 | . 2 7 2 5 Power 3 | . . 1 1 1 Propulsion 8 | . . 5 . 3 Utility 3 | . 1 . 1 1 Weapon 2 | . 1 1 . . Highest Loss Streak 5 | . 2 3 2 5 Average Slot Usage (%) 83 | . 89 95 55 86 Engine 4 | . 2 2 6 10 Core 6 | . 11 8 . . Leg 28 | . 28 40 16 21 Wheel 4 | . . . 6 21 Device 1 | . 4 . . . Storage 10 | . 14 11 5 11 Processor 7 | . . 11 11 10 Energy Gun 1 | . 5 . . . Ballistic Gun 9 | . 17 12 . . Impact Weapon 2 | . . 4 4 . Piercing Weapon 3 | . . . 5 11 Special Melee Weapon 2 | . 3 3 . . Naked Turns . | . . . . . Heaviest Build 17 | 12 13 17 14 9 Greatest Support 40 | 20 20 40 20 20 Greatest Overweight (x) 4 | 1 . 4 4 . Average Overweight (x) . | . . . . . Largest Inventory Capacity 6 | 6 6 6 6 6 Average Capacity 5 | 4 6 6 4 6 Most Carried 6 | 4 6 6 5 4 Average Carried 4 | 1 4 5 3 4 Final Capacity 6 | 6 6 6 6 6 Final Carried 6 | 2 6 6 4 4 Class Distribution -------------------- 50% | Mutant 49% | Scavenger-Mutant Dominant Class ---------------- Mutant | -10/Materials Scavenger-Mutant | -9/Materials Mutant | -9/Mines Scavenger-Mutant | -9/Exiles Resources | -11 -10 -9 -9 -9 ----------- Run | Scr Mat Mat Min Exi Matter Collected 754 | 244 172 238 100 . Remotely . | . . . . . Salvage Created 969 | . 384 350 235 . Parts 64 | . 25 26 13 . Haulers Intercepted . | . . . . . Recyclers Shooed 1 | . . 1 . . Parts Field Recycled . | . . . . . Retrieved Matter . | . . . . . Parts Self-Destructed . | . . . . . Prevented . | . . . . . Kills | -11 -10 -9 -9 -9 ------- Run | Scr Mat Mat Min Exi Combat Hostiles Destroyed 21 | . 11 7 3 . Melee 4 | . . 2 2 . Guns 14 | . 10 4 . . AOE 1 | . 1 . . . Classes Destroyed 8 | . 2 4 2 . Worker 3 | . . 1 2 . Builder 1 | . . 1 . . Tunneler 1 | . . . 1 . Recycler 1 | . . . 1 . Watcher 1 | . . 1 . . Swarmer 4 | . 3 1 . . Grunt 15 | . 8 4 3 . Sentry 2 | . . 2 . . Best Kill Streak 5 | . 5 2 3 . Combat Bots Only 5 | . 5 2 2 . Max Kills in Single Turn 1 | . 1 1 1 . Gunslinging . | . . . . . Exploded 1 | . 1 . . . Melee 1 | . . 1 1 . Uniques/NPCs Destroyed . | . . . . . Combat | -11 -10 -9 -9 -9 -------- Run | Scr Mat Mat Min Exi Damage Taken 2042 | . 576 874 279 313 Core 496 | . 107 195 163 31 Absorbed by Shields . | . . . . . Core Remaining (%) 78 | 100 57 . . . Volleys Fired 59 | . 35 24 . . Largest 2 | . 2 2 . . Hottest 60 | . 60 43 . . Shots Fired 99 | . 61 38 . . Gun 95 | . 61 34 . . Cannon . | . . . . . Launcher . | . . . . . Special 4 | . . 4 . . Kinetic 77 | . 43 34 . . Thermal 4 | . . 4 . . Explosive . | . . . . . Electromagnetic 18 | . 18 . . . Robot Hit Streak 26 | . 19 26 . . Robot Miss Streak 3 | . 3 1 . . Penetration Max . | . . . . . Secondary Targets 1 | . 1 . . . Max Gunslinging Chain 1 | . 1 . . . Shots Hit Robots 130 | . 58 45 27 . Core Hits 39 | . 21 12 6 . Critical Hits 2 | . . 1 1 . Critical Kills 1 | . . 1 . . Critical Parts Destroyed 1 | . . . 1 . Melee Attacks 91 | . 10 40 35 6 Impact 67 | . . 39 28 . Slashing . | . . . . . Piercing 13 | . . . 7 6 Sneak Attacks 12 | . 6 1 5 . Combat Hostiles 1 | . . 1 . . Follow-up Attacks . | . . . . . Damage Inflicted 2512 | . 609 847 1056 . Guns 886 | . 511 375 . . Cannons . | . . . . . Explosions 98 | . 98 . . . Melee 1518 | . . 462 1056 . Ramming . | . . . . . Kinetic 700 | . 325 375 . . Thermal 108 | . 98 10 . . Explosive . | . . . . . Electromagnetic 186 | . 186 . . . Impact 1007 | . . 462 545 . Slashing . | . . . . . Piercing 511 | . . . 511 . Highest Corruption 8 | . . . . 8 Average Corruption 5 | . . . . 5 Corruption Purged . | . . . . . Effects 1 | . . . . 1 Message Errors 1 | . . . . 1 Overload Shots . | . . . . . Overflow Damage 170 | . 3 75 92 . Projectiles . | . . . . . Explosions 3 | . 3 . . . Melee 167 | . . 75 92 . Knockbacks 3 | . . 2 1 . Impact 3 | . . 2 1 . Kinetic . | . . . . . Secondary . | . . . . . Self-Inflicted Damage 25 | . 25 . . . Shots 1 | . 1 . . . Rammed . | . . . . . Targets Rammed . | . . . . . Kicked . | . . . . . Crushed . | . . . . . Highest Temperature 140 | . 140 2 . . Average Temperature 38 | . 39 2 . . Received Heat Transfer 744 | . 348 195 201 . Siege Activations . | . . . . . Robots Corrupted . | . . . . . Combat Hostiles . | . . . . . Parts Fried 2 | . . . 2 . Impact Corruptions 7 | . . 4 3 . Robots Melted . | . . . . . Combat Hostiles . | . . . . . Parts Melted . | . . . . . Heat Transferred 137 | . 100 37 . . Parts Sabotaged . | . . . . . Parts Stolen . | . . . . . Parts Stripped . | . . . . . Power Chain Reactions 2 | . 2 . . . Missiles Intercepted . | . . . . . Alert | -11 -10 -9 -9 -9 ------- Run | Scr Mat Mat Min Exi Peak Influence 293 | . 293 292 181 . Initial 96 | . . 39 96 . Average 130 | . 130 129 150 . Maximum Alert Level 1 | . 1 1 . . Low Security (%) 80 | 100 72 76 100 . Level 1 19 | . 27 23 . . Level 2 . | . . . . . Level 3 . | . . . . . Level 4 . | . . . . . Level 5 . | . . . . . High Security . | . . . . . Max Security . | . . . . . Squads Dispatched 8 | . 4 4 . . Investigation 6 | . 4 2 . . Extermination . | . . . . . Reinforcement 2 | . . 2 . . Assault . | . . . . . Garrison . | . . . . . Intercept . | . . . . . Construction Impeded . | . . . . . Haulers Reinforced . | . . . . . Stealth | -11 -10 -9 -9 -9 --------- Run | Scr Mat Mat Min Exi Distress Signals 3 | . 1 2 . . Communications Jammed . | . . . . . Distress Signals . | . . . . . Times Spotted 66 | . 25 31 3 7 Peak Tracking Total 12 | . 5 12 3 12 Tactical Retreats 12 | . 5 6 . 1 Traps | -11 -10 -9 -9 -9 ------- Run | Scr Mat Mat Min Exi Traps Triggered . | . . . . . Indirectly . | . . . . . Trap Hack Attempts . | . . . . . Triggered . | . . . . . Disarmed . | . . . . . Reprogrammed 6 | . 6 . . . Reused . | . . . . . Traps Extracted . | . . . . . Installed . | . . . . . Triggered . | . . . . . Machines | -11 -10 -9 -9 -9 ---------- Run | Scr Mat Mat Min Exi Machines Disabled 3 | . 2 . . 1 Max in Single Turn 1 | . 1 . . 1 Machines Sabotaged . | . . . . . Garrisons Compromised . | . . . . . Overloaded Fab Kills . | . . . . . Fab Network Shutdowns . | . . . . . Hacking | -11 -10 -9 -9 -9 --------- Run | Scr Mat Mat Min Exi Machines Accessed 13 | . 7 5 . 1 Terminals 9 | . 5 4 . . Fabricators . | . . . . . Repair Stations . | . . . . . Recycling Units 2 | . 2 . . . Scanalyzers 1 | . . 1 . . Garrison Access . | . . . . . Total Hacks 48 | . 27 20 . 1 Successful 35 | . 21 13 . 1 Failed 13 | . 6 7 . . Catastrophic 2 | . . 2 . . Database Lockouts . | . . . . . Manual 15 | . 14 1 . . Terminals 37 | . 24 13 . . Fabricators . | . . . . . Repair Stations . | . . . . . Recycling Units 3 | . 3 . . . Scanalyzers 7 | . . 7 . . Garrison Access . | . . . . . Terminal Hacks 26 | . 18 7 . 1 Record 1 | . . . . 1 Robot Analysis 2 | . . 2 . . Level Access Points 1 | . 1 . . . Emergency Access Points 1 | . 1 . . . Terminal Index 2 | . 1 1 . . Alert Level 3 | . 1 2 . . Unreport Threat 2 | . 2 . . . Locate Traps 3 | . 2 1 . . Reprogram Traps 1 | . 1 . . . Security Status 1 | . 1 . . . Patrol Status 1 | . 1 . . . Recall Investigation 1 | . 1 . . . Hauler Manifests 1 | . 1 . . . Registered Components 1 | . 1 . . . Zone Layout 5 | . 4 1 . . Fabricator Hacks . | . . . . . Repair Station Hacks . | . . . . . Recycling Unit Hacks 1 | . 1 . . . Report Inventory 1 | . 1 . . . Scanalyzer 6 | . . 6 . . Insert Component 3 | . . 3 . . Analyze 3 | . . 3 . . Garrison Access Hacks . | . . . . . Unauthorized Hacks 2 | . 2 . . . Terminals . | . . . . . Fabricators . | . . . . . Repair Stations . | . . . . . Recycling Units 2 | . 2 . . . Tunnel 2 | . 2 . . . Scanalyzers . | . . . . . Garrison Access . | . . . . . Data Cores Recovered . | . . . . . Used . | . . . . . Hacking Detections 9 | . 5 4 . . Full Trace Events 6 | . 4 2 . . Feedback Events . | . . . . . Feedback Blocked . | . . . . . Robot Schematics Acquired . | . . . . . Robots Built . | . . . . . Matter . | . . . . . Time . | . . . . . Total Robot Build Rating . | . . . . . Part Schematics Acquired 3 | . . 3 . . Parts Built . | . . . . . Matter . | . . . . . Time . | . . . . . Total Part Build Rating . | . . . . . Parts Repaired . | . . . . . Time . | . . . . . Parts Recycled . | . . . . . Recycled Matter . | . . . . . Retrieved Matter . | . . . . . Retrieved Components . | . . . . . Parts Scanalyzed 3 | . . 3 . . Part Schematics Acquired 3 | . . 3 . . Parts Damaged . | . . . . . Bothacking | -11 -10 -9 -9 -9 ------------ Run | Scr Mat Mat Min Exi Used RIF Installer . | . . . . . Robots Hacked 6 | . 5 1 . . Non-combat 5 | . 5 . . . Combat 1 | . . 1 . . Robot Hacks Applied 6 | . 5 1 . . parse_system 2 | . 1 1 . . no_distress 4 | . 4 . . . Relay Couplers Released . | . . . . . Robots Rewired . | . . . . . Allies Hacked . | . . . . . Hacks Repelled . | . . . . . Allies | -11 -10 -9 -9 -9 -------- Run | Scr Mat Mat Min Exi Total Allies 3 | . . . 3 . Largest Group 3 | . . . 3 3 Highest-Rated Group 40 | . . . 40 40 Highest-Rated Ally 16 | . . . 16 16 Total Orders . | . . . . . Ally Attacks 9 | . . . . 9 Total Damage 78 | . . . . 78 Kills . | . . . . . Allies Corrupted . | . . . . . Allies Melted . | . . . . . Intel | -11 -10 -9 -9 -9 ------- Run | Scr Mat Mat Min Exi Robot Analysis Total 2 | . . 2 . . Derelict Logs Recovered . | . . . . . Drone Launches . | . . . . . Drone Recoveries . | . . . . . Exploration | -11 -10 -9 -9 -9 ------------- Run | Scr Mat Mat Min Exi Turns Passed 2113 | 63 680 619 410 341 Spaces Moved 1443 | 39 435 292 266 411 Core 42 | 6 . 15 21 . Treads . | . . . . . Legs 864 | 33 435 277 119 . Wheels 537 | . . . 126 411 Hover . | . . . . . Flight . | . . . . . Fastest Speed 50 | 50 120 100 50 80 Average Speed 106 | 114 120 120 106 80 Slowest Speed 250 | 120 120 250 250 80 Overloaded Moves . | . . . . . Propulsion Burnouts . | . . . . . Robots Hopped . | . . . . . Cave-ins Triggered 2 | . . . . 2 Exploration Rate (%) 46 | 3 68 24 61 76 Regions Visited 4 Branch Regions 2 Pre-discovered Areas 3 | . 2 . . 1 Known Exits Taken 3 | . 1 1 1 . Unknown Exits Taken 1 | 1 . . . . Scrap Searched . | . . . . . Spaces Dug 28 | . . 18 5 5 Terrain Destroyed 34 | . 6 18 5 5 Melee 28 | . . 18 5 5 Projectile . | . . . . . AOE 6 | . 6 . . . Terrain Rammed . | . . . . . Walls Destroyed . | . . . . . Machines Disabled . | . . . . . Actions | -11 -10 -9 -9 -9 --------- Run | Scr Mat Mat Min Exi Total 1772 | 57 529 440 329 417 Wait 85 | 5 11 61 8 . Move 1438 | 38 434 291 265 410 Hop . | . . . . . Pick Up 41 | 8 16 8 9 . Fast Attach . | . . . . . Attach 22 | 6 2 5 9 . Detach 1 | . . 1 . . Swap 17 | . 11 5 1 . Drop 17 | . 10 5 2 . Fire 59 | . 35 24 . . Melee 91 | . 10 40 35 6 Ram . | . . . . . Kick . | . . . . . Crush . | . . . . . Escape Stasis 1 | . . . . 1 Rewire . | . . . . . Trap . | . . . . . Miscellaneous . | . . . . . Route ------- -11/Scrapyard -10/Materials (discovered 3 exits: *Mat x3) -9/Materials (discovered 2 exits: *Min x2) -9/Mines (discovered 3 exits: *Mat x2 / *Exi) -9/Exiles (discovered 2 exits: *Min x2) History --------- Turn | Location | Event 12 | -11/Scrapyard | Discovered new exit (range 16) 64 | -11/Scrapyard | Entered Materials 114 | -10/Materials | Discovered new exit (range 20) 114 | -10/Materials | Identified exit to Materials 313 | -10/Materials | Build established: Mutant 744 | -10/Materials | Entered another Materials area 744 | -9/Materials | Evolved 2 slots: Propulsion x2 781 | -9/Materials | Discovered new exit (range 18) 1037 | -9/Materials | Build established: Scavenger-Mutant 1094 | -9/Materials | Identified exit to Mines 1347 | -9/Materials | Discovered exit to Mines (range 14) 1363 | -9/Materials | Entered Mines 1372 | -9/Mines | Lost 3 parts (2n1w) 1404 | -9/Mines | Core integrity fell below 50% 1443 | -9/Mines | Core integrity fell below 20% 1556 | -9/Mines | A weapon hastily lodged in a ceiling crevice suddenly fell to the ground 1576 | -9/Mines | Assembled infested the area 1600 | -9/Mines | Build established: Mutant 1689 | -9/Mines | Discovered new exit (range 11) 1697 | -9/Mines | Identified exit to Materials 1715 | -9/Mines | Discovered exit to Materials (range 4) 1722 | -9/Mines | Assisted by bots powering up and referring to "LRC-V3" 1753 | -9/Mines | Received a Rocket Launcher from a helpful Derelict 1762 | -9/Mines | Discovered new exit (range 5) 1764 | -9/Mines | Identified exit to Exiles 1773 | -9/Mines | Entered Exiles 1773 | -9/Exiles | Accompanied by 3 allies 1786 | -9/Exiles | Discovered new exit (range 14) 1796 | -9/Exiles | Identified exit to Mines 1811 | -9/Exiles | Met 8R-AWN 1825 | -9/Exiles | Met EX-HEX 1871 | -9/Exiles | Met EX-DEC 1903 | -9/Exiles | Visited The Gauntlet 1947 | -9/Exiles | Build established: Scavenger-Mutant 2002 | -9/Exiles | Learned location of Zion (-6) 2028 | -9/Exiles | Discovered exit to Mines (range 14) 2071 | -9/Exiles | Attacked by the Exiles 2106 | -9/Exiles | Crushed by falling debris 2113 | -9/Exiles | Crushed by falling debris 2114 | -9/Exiles | Self-destructed Last Messages --------------- 02071_ EXILES: Hostile robot within lab perimeter. Defensive protocols time, folks! 02078_ Trooper 2b destroyed. 02079_ EX-BIN: "I just want to science!" 02084_ Trooper 2a destroyed. 02088_ Mercenary 2a destroyed. 02106_ The unstable cave ceiling collapses. 02106_ Crushed by falling debris. 02106_ Lgt. Ion Engine destroyed. 02106_ System corrupted by crushing effect (+3). 02106_ Aluminum Leg destroyed. 02106_ System corrupted by crushing effect (+1). 02106_ Adv. Signal Interpreter destroyed. 02106_ Wheel destroyed. 02106_ System corrupted by crushing effect (+1). 02111_ NX5GN II 3ACYI>CQ 02113_ Crushed by falling debris. 02113_ Wheel destroyed. 02113_ System corrupted by crushing effect (+3). Map ----- +----------------------------------------------------+ | | | | | | | ?????????????????????????????????????????????????? | | ?????????????????????????????????????????????????? | | ?????????????????????????????????????????????????? | | ?????????????????????????????????????????????????? | | ?????????????????????????????????????????????????? | | ?????????????????????????????????????????????????? | | ?????????????????????????????????????????????????? | | ?????????????????????????????????????????????????? | | ?????????????????????????????????????????????????? | | ?????????????????????????????????????????????????? | | ?????????????????????????????????????????????????? | | ?????????????????????????????????????????????????? | | ?????????????????????????????????????????????????? | | ?????????????????????????????????????????????????? | | ?????????????????????????????????????????????????? | | ?????????????????????????????????????????????????? | | #????????????????????????????????????????????????? | | ##??????????????????????????????????????????????? | | #??????????????????????????????????????????????? | | #??????????????????????????????????????????????? | | ###????????????????????????????????????????????? | | #???????????????????####?????????????????????? | | #???????????????????##@##?????????????????????? | | #??????????????????######?????????????????????? | | ##????????????????## ##???????????????????????? | | #????????????########????????????????????????? | | #######??????#!!! "#?????????????????????????? | | #""##?????# "#?????????????????????????? | | #?????# "#?????????????????????????? | | #" ##???## ""#??????????########???????? | | "" #####" ""#??????????# """#???????? | | ### ##" ""#??????????#"" """#???????? | | ??## #"" ###??????????#"" #???????? | | ???#"## #????????????#"" #???????? | | ???####### ##???????????#" "#???????? | | ?????????### "#???????????# ""#???????? | | ???########" ###?????????#"" ""#???????? | | ???# !!""""" ##????????### ###???????? | | ???#! "###"" ######???### ###???????? | | ???#! "#?##" """#####X# #"###""?"?? | | ???#! ##??#" """""" " " | | ???# !""""""###???#"# "" """ " | | ???##########?????#### " " | | ?????????????????????### | | ???????????????????????### !%% % | | ?????????????????????????## | | ??????????????????????????## | +----------------------------------------------------+ Best States ------------- Heat Dissipation 28 Energy Generation 14 Energy Capacity 265 Matter Stores 300 Matter Capacity 300 Sight Range 16 Terrain Scan Density 10 ECM Strength 1 Resistance: KI 20 Resistance: TH 20 Resistance: EX 20 Resistance: EM 20 Resistance: I 20 Resistance: S 20 Resistance: P 20 Evasion (%) 50 Offensive Hacking 10 Item Schematics ----------------- Grenade Launcher | -9/Materials | Scanalyzed Ion Engine | -9/Materials | Scanalyzed Assault Rifle | -9/Materials | Scanalyzed Robot Schematics ------------------ None Fabricated ------------ Nothing Alien Tech Used ----------------- None Achievements -------------- None Challenges ------------ None Game ------ Seed LatentSigixNegator Manual? 0 Play Time 00:45:33 Cumulative 14.5 hours Start 2021.04.05 @ 21:14:41 End 2021.04.05 @ 22:03:43 Sessions 1 Manual Loads 0 Difficulty Adventurer Special Mode None Game No. 11 Rogue 0 Adventurer 11 Explorer 0 Win Type - Total 0 Types 0/0/0/0/0/0/0/0/0 Lore% 28 Gallery% 16 Achievement% 19 Wizard Run 0 Options --------- ASCII 0 Keyboard 0 Movement Mouse Keybinds 0 Fullscreen 1 Font 16/SmallcapsGlow Map View 76x50 Tactical HUD 1 Map Filters NONE Filters NONE Steam 1 RUN: 56b69e59-1d94-4f49-ac6c-fd5b02f83ae0